bitfinex-derivatives/quotes_ETHF0:USTF0_20250828
["timestamp","ask_amount","ask_price","bid_price","bid_amount"]
[1756379451331,3.8625,4598.0,4597.9,0.085]
[1756379451736,4.0828,4598.0,4597.9,0.085]
[1756379452126,4.4773,4598.0,4597.9,0.085]
[1756379452333,4.9364,4598.0,4597.9,0.085]
[1756379453828,3.8625,4598.0,4597.9,0.085]
[1756379454334,4.0828,4598.0,4597.9,0.085]
[1756379454533,3.5495,4598.0,4597.9,0.085]
[1756379454729,0.3417,4598.0,4597.9,3.2928]
[1756379456431,0.6547,4598.0,4597.9,3.2928]
[1756379456637,1.12348643,4598.0,4597.9,3.2928]
[1756379456839,1.34378643,4598.0,4597.9,3.2928]
[1756379457438,1.34378643,4598.0,4597.9,15.1698]
[1756379457935,2.19738643,4598.0,4597.4,3.2078]
[1756379458130,1.7286,4598.0,4597.9,19.792]
[1756379458436,2.19742981,4598.0,4597.4,3.2078]
[1756379458732,1.7286,4596.8,4596.7,0.085]
[1756379459038,2.19750116,4596.8,4596.7,13.193]
[1756379460435,1.80300116,4596.8,4596.7,13.193]
[1756379460634,1.80300116,4596.8,4596.7,0.085]
[1756379460829,1.80300116,4596.8,4596.7,19.878]
[1756379461536,2.19750116,4596.8,4596.7,19.878]
[1756379473146,0.7047,4596.3,4596.0,3.2078]
[1756379473347,1.7456,4595.9,4595.8,31.351]
[1756379473541,1.7456,4595.2,4595.1,0.0536]
[1756379473751,1.7456,4595.2,4595.1,19.8426]
[1756379476249,1.7456,4595.2,4595.1,0.0536]
[1756379476442,1.7456,4595.2,4595.1,19.8446]
[1756379477650,1.3493,4595.2,4595.1,19.8446]
[1756379478153,0.6446,4596.1,4595.6,0.39165]
[1756379478449,0.78763383,4596.0,4595.9,1.22861314]
[1756379479046,0.78763383,4596.0,4595.9,0.0536]
[1756379479656,1.10133383,4596.0,4595.9,0.0536]
[1756379480152,0.78763383,4596.0,4595.9,0.0536]
[1756379480453,1.31003383,4596.0,4595.9,0.0536]
[1756379481354,0.8533,4596.0,4595.9,0.0536]
[1756379482252,1.7456,4596.0,4595.9,0.0536]
[1756379487549,1.7456,4595.9,4595.8,3.2078]
[1756379488156,1.7456,4595.9,4595.8,3.2614]
[1756379488951,2.20355112,4595.9,4595.8,4.43623091]
[1756379490951,1.80725112,4595.9,4595.8,4.43623091]
[1756379491353,2.20355112,4595.9,4595.8,4.43623091]
[1756379492953,0.5396,4596.8,4596.5,0.40318]
[1756379493151,0.8533,4596.7,4596.6,20.21377]
[1756379494648,0.3309,4596.7,4596.6,20.38742084]
[1756379494854,0.21460306,4597.4,4597.3,0.39151]
[1756379495054,0.35425293,4597.4,4597.3,23.2775]
[1756379495551,0.3963,4597.7,4597.3,23.1707]
[1756379495756,0.3137,4597.7,4597.6,1.40757662]
[1756379495945,0.3137,4597.7,4597.6,21.48047662]
[1756379496145,0.7714685,4597.7,4597.6,21.48047662]
[1756379496860,1.8724685,4597.7,4597.6,21.48047662]
[1756379497157,2.2033685,4597.7,4597.6,21.48047662]
[1756379499064,2.2033685,4597.7,4597.6,20.307]
[1756379499065,1.7456,4597.7,4597.6,20.307]
[1756379499562,1.7456,4597.7,4597.6,0.515]
[1756379499860,1.7456,4597.7,4597.6,20.304]
[1756379500764,1.7456,4597.7,4597.6,0.515]
[1756379501066,1.7456,4597.7,4597.6,20.304]
[1756379501267,1.7456,4597.7,4597.6,0.2457]
[1756379501560,5.38066448,4597.7,4597.6,17.82]
[1756379501752,5.38066448,4597.7,4597.2,1.17352101]
[1756379501753,0.3261,4597.6,4597.2,1.17352101]
[1756379501958,1.0214,4597.1,4597.0,1.17352101]
[1756379502257,2.20816448,4597.1,4597.0,18.36052101]
[1756379502459,2.20816448,4597.1,4597.0,20.96152101]
[1756379502660,2.20816448,4597.1,4597.0,19.788]
[1756379504666,2.20816448,4597.1,4597.0,20.2016]
[1756379505360,2.20816448,4597.1,4596.9,1.17352101]
[1756379505565,2.20816448,4597.0,4596.9,1.67202101]
[1756379505765,2.20816448,4597.0,4596.9,21.85472101]
[1756379506462,2.20816448,4597.0,4596.9,2.06672101]
[1756379506664,1.15376448,4597.0,4596.8,1.17352101]
[1756379506856,0.6953,4597.0,4596.9,20.4048]
[1756379507063,1.15385985,4597.0,4596.9,20.4048]
[1756379507265,2.20825985,4597.0,4596.9,20.6812]
[1756379507468,2.20825985,4597.0,4596.9,20.7001]
[1756379507765,2.20825985,4597.0,4596.9,20.7119]
[1756379512169,2.20825985,4597.0,4596.9,20.6812]
[1756379512366,0.6953,4596.8,4596.7,1.17352101]
[1756379512671,1.7497,4596.7,4596.5,1.17352101]
[1756379512964,1.7497,4596.7,4596.6,19.788]
[1756379513169,1.47999419,4596.7,4596.5,1.17352101]
[1756379513365,2.20829419,4596.6,4596.5,1.17352101]
[1756379513566,2.20829419,4596.6,4596.5,20.96152101]
[1756379513769,2.20829419,4596.6,4596.5,20.2016]
[1756379514272,2.20829419,4596.6,4596.5,19.788]
[1756379514878,2.20829419,4596.6,4596.5,20.4048]
[1756379515178,2.20829419,4596.6,4596.5,20.6812]
[1756379515378,2.20829419,4596.6,4596.5,20.7119]
[1756379516575,2.20829419,4596.6,4596.5,20.9813]
[1756379517070,0.45859419,4596.6,4596.5,20.9813]
[1756379517276,0.45859419,4596.6,4596.5,22.15482101]
[1756379517478,0.45859419,4596.6,4596.5,2.36682101]
[1756379517672,1.10869419,4596.6,4596.5,22.15582101]
[1756379518680,1.53889419,4596.6,4596.5,22.15582101]
[1756379519279,1.10869419,4596.6,4596.5,22.15582101]
[1756379521783,2.20829419,4596.6,4596.5,20.7129]
[1756379521981,2.20829419,4596.6,4596.5,0.9239]
[1756379522182,2.20829419,4596.6,4596.5,20.7129]
[1756379522981,1.10869419,4596.6,4596.5,20.9823]
[1756379523279,0.45859419,4596.6,4596.5,22.15582101]
[1756379523678,0.45859419,4596.6,4596.5,20.9823]
[1756379524087,0.78259419,4596.6,4596.5,20.9823]
[1756379525889,0.78259419,4596.6,4596.5,22.15582101]
[1756379527192,1.10869419,4596.6,4596.5,22.15582101]
[1756379527991,1.10869419,4596.6,4596.5,2.36682101]
[1756379528182,0.2193,4596.1,4596.0,1.17352101]
[1756379528387,1.7557,4595.6,4595.5,0.4026]
[1756379528590,5.42209419,4595.6,4595.5,8.569]
[1756379528786,1.7557,4595.2,4595.1,0.4026]
[1756379528985,2.21429419,4595.2,4595.1,18.191]
[1756379529181,2.21429419,4595.2,4595.1,17.62484141]
[1756379529387,2.21429419,4595.2,4595.1,18.50944141]
[1756379529685,2.21429419,4595.2,4595.1,20.6674]
[1756379530098,2.21429419,4595.2,4595.1,20.6771]
[1756379530391,2.21429419,4595.2,4595.1,19.79]
[1756379531288,2.21429419,4595.2,4594.8,0.4026]
[1756379531596,1.4831,4594.6,4594.5,0.884]
[1756379531892,2.21429419,4594.6,4594.5,0.8875]
[1756379532093,2.21429419,4594.6,4594.5,20.1936]
[1756379532294,2.21429419,4594.6,4594.5,20.6694]
[1756379533090,1.21189419,4594.6,4594.0,0.4026]
[1756379533291,1.7557,4594.1,4594.0,0.8784]
[1756379533486,2.21429419,4594.1,4594.0,20.1936]
[1756379533888,2.21429419,4594.1,4594.0,19.791]
[1756379535692,2.21429419,4594.1,4593.7,31.7456]
[1756379535886,1.7557,4593.9,4593.8,20.6714]
[1756379536087,2.21429419,4593.9,4593.8,20.6714]
[1756379536287,2.21429419,4593.9,4593.8,0.8875]
[1756379536488,1.79209419,4593.9,4593.8,20.9427]
[1756379538796,2.21429419,4593.9,4593.8,0.8875]
[1756379538996,2.21429419,4593.9,4593.8,20.6825]
[1756379539297,1.79209419,4593.9,4593.8,20.9437]
[1756379540598,5.42209419,4593.9,4593.8,20.6835]
[1756379541496,5.42209419,4593.9,4593.8,20.9447]
[1756379542199,5.42953125,4593.9,4593.8,20.9447]
[1756379543201,4.73473125,4593.9,4593.8,20.9447]
[1756379544998,5.42953125,4593.9,4593.8,20.9447]
[1756379545499,5.42953125,4593.9,4593.8,20.6835]
[1756379546399,5.42953125,4593.9,4593.8,20.6855]
[1756379546598,5.42953125,4593.9,4593.8,0.8875]
[1756379546801,5.42953125,4593.9,4593.8,20.6855]
[1756379548606,1.7557,4593.4,4593.3,0.8784]
[1756379548797,2.22173125,4593.4,4593.3,20.6764]
[1756379550305,2.22173125,4593.4,4593.3,20.6774]
[1756379550496,2.22173125,4593.4,4593.3,20.88162694]
[1756379550900,5.42953125,4593.4,4593.3,0.20422694]
[1756379551499,5.42953125,4593.4,4593.1,19.799]
[1756379551804,1.7557,4593.2,4593.1,20.6774]
[1756379552103,2.22173125,4593.2,4593.1,20.88163995]
[1756379552301,2.22173125,4593.2,4593.1,1.08263995]
[1756379552508,2.22173125,4593.2,4592.8,0.0035]
[1756379552509,1.16583125,4593.2,4593.0,16.064]
[1756379552805,2.22173125,4593.1,4593.0,16.9515]
[1756379553005,2.22173125,4593.1,4593.0,17.15574028]
[1756379553205,2.22173125,4593.1,4593.0,1.09174028]
[1756379554905,2.22173125,4593.1,4593.0,0.8875]
[1756379556704,2.22173125,4593.1,4593.0,0.8784]
[1756379556907,1.0559,4593.0,4592.9,13.944]
[1756379557208,2.22173125,4593.0,4592.9,14.3466]
[1756379558512,2.22173125,4593.0,4592.9,0.4026]
[1756379558805,2.22173125,4593.0,4592.6,20.1923]
[1756379559005,1.4148,4592.8,4592.7,0.8652]
[1756379559208,2.20863125,4592.8,4592.7,0.8652]
[1756379564806,2.20863125,4592.8,4592.7,0.3913]
[1756379565006,1.0392,4592.7,4592.5,0.3913]
[1756379565319,1.91043125,4592.6,4592.5,0.8652]
[1756379565612,2.20863125,4592.6,4592.5,0.8652]
[1756379565906,1.79543125,4592.6,4592.5,1.1201]
[1756379566611,1.50853125,4592.6,4592.5,1.1201]
[1756379566811,1.09203125,4592.6,4592.5,1.1201]
[1756379568619,1.50853125,4592.6,4592.5,1.1201]
[1756379569914,1.92173125,4592.6,4592.5,1.1201]
[1756379570416,2.20863125,4592.6,4592.5,1.1201]
[1756379576521,2.20863125,4592.6,4592.5,0.8652]
[1756379577218,2.20863125,4592.6,4592.5,20.6662]
[1756379580719,1.09203125,4592.6,4592.5,20.9211]
[1756379581117,1.50523125,4592.6,4592.5,20.9211]
[1756379581319,2.20863125,4592.6,4592.5,20.9211]
[1756379581522,2.20863125,4592.6,4592.5,20.6662]
[1756379584924,2.20863125,4592.6,4592.5,20.9211]
[1756379585921,1.79543125,4592.6,4592.5,20.9211]
[1756379586124,2.20863125,4592.6,4592.5,20.9211]
[1756379594132,2.20863125,4592.6,4592.5,1.1201]
[1756379594332,2.20863125,4592.6,4592.5,20.9191]
[1756379595035,2.20863125,4592.6,4592.5,0.6516]
[1756379595225,2.20863125,4592.6,4592.5,15.7052]
[1756379595425,2.20863125,4592.6,4592.5,16.1683]
[1756379596436,2.20863125,4592.6,4592.5,20.6503]
[1756379598835,1.79543125,4592.6,4592.5,20.8935]
[1756379599037,1.79543125,4592.6,4592.5,1.0955]
[1756379599337,2.22073125,4592.6,4592.5,7.2313]
[1756379600134,2.22073125,4592.6,4592.5,0.8523]
[1756379600934,1.79543125,4592.6,4592.5,1.0955]
[1756379601238,1.50853125,4592.6,4592.5,1.0955]
[1756379601536,2.20323125,4592.6,4592.5,0.8523]
[1756379603132,1.50853125,4592.6,4592.5,1.0955]
[1756379603438,3.2078,4593.4,4592.6,0.2432]
[1756379603638,3.5254,4593.4,4593.3,0.1994]
[1756379603832,4.9522,4593.4,4593.3,0.4426]
[1756379604029,4.9522,4593.4,4593.3,0.1994]
[1756379609626,1.0512,4593.3,4593.0,16.735]
[1756379609831,1.7444,4593.1,4593.0,16.9344]
[1756379610033,1.7444,4593.1,4593.0,0.1994]
[1756379610233,1.7444,4593.1,4593.0,19.9944]
[1756379610740,1.7444,4593.1,4593.0,0.1994]
[1756379610942,1.7444,4593.1,4593.0,19.9944]
[1756379612242,1.7444,4593.1,4593.0,20.2376]
[1756379612838,1.7444,4593.1,4593.0,19.9934]
[1756379613338,1.7444,4593.1,4592.4,3.2078]
[1756379613536,3.2078,4593.4,4592.5,19.794]
[1756379613743,1.7444,4592.6,4592.5,19.9934]
[1756379614938,1.7444,4592.6,4592.5,20.2366]
[1756379615344,2.21252884,4592.6,4592.5,20.2366]
[1756379615543,1.09402884,4592.6,4592.5,20.2366]
[1756379618044,2.21252884,4592.6,4592.5,20.2389]
[1756379618745,2.21252884,4592.6,4592.5,20.2379]
[1756379620242,2.21252884,4592.6,4592.5,0.4449]
[1756379620445,2.21252884,4592.6,4592.5,20.2369]
[1756379625456,1.09402884,4592.6,4592.5,20.2369]
[1756379626753,1.09402884,4592.6,4592.5,20.2359]
[1756379628552,0.78572884,4592.6,4592.5,20.2359]
[1756379630046,1.09012884,4592.6,4592.5,20.2359]
[1756379635453,2.19312884,4592.6,4592.5,20.2359]
[1756379636656,1.57502884,4592.6,4592.5,20.2359]
[1756379636959,1.09012884,4592.6,4592.5,20.2359]
[1756379641151,0.46722884,4592.6,4592.5,20.62782]
[1756379641458,0.304,4593.5,4592.5,21.359365]
[1756379641654,0.6798,4593.2,4592.6,19.787]
[1756379641859,0.6181,4593.0,4592.6,19.787]
[1756379642160,0.3044,4592.9,4592.6,19.787]
[1756379642567,0.304,4592.7,4592.4,4.776165]
[1756379642749,0.6084,4592.8,4592.7,19.787]
[1756379643549,0.3044,4592.8,4592.4,4.776165]
[1756379643760,0.3044,4592.8,4592.7,19.787]
[1756379644163,0.6084,4592.8,4592.7,19.787]
[1756379646160,0.6084,4592.8,4592.7,19.785]
[1756379646861,0.304,4592.8,4592.7,19.785]
[1756379649065,0.6066,4592.8,4592.7,19.785]
[1756379650670,0.3026,4592.8,4592.4,3.2078]
[1756379650870,0.3073,4592.7,4592.5,19.783]
[1756379652066,0.3073,4592.7,4592.4,3.2078]
[1756379652271,0.3073,4592.7,4592.5,19.783]
[1756379654367,0.691,4593.1,4592.5,19.783]
[1756379654568,1.0749135,4593.0,4592.9,1.1763406]
[1756379654865,1.0749135,4593.0,4592.9,20.9583406]
[1756379655070,1.4747135,4593.0,4592.9,20.9583406]
[1756379655262,1.4747135,4593.0,4592.9,20.9573406]
[1756379656173,1.4747135,4593.0,4592.9,1.1763406]
[1756379656363,1.4747135,4593.0,4592.9,18.0723406]
[1756379656875,0.3073,4593.0,4592.9,18.0723406]
[1756379657966,0.6099,4593.0,4592.9,18.0723406]
[1756379662878,1.2178,4593.0,4592.9,18.0723406]
[1756379663072,1.7007,4593.0,4592.9,18.0723406]
[1756379666475,1.7007,4593.0,4592.9,1.1763406]
[1756379666774,0.7071,4592.4,4592.2,16.282]
[1756379666980,2.16522705,4592.3,4592.2,16.282]
[1756379667375,1.0097,4592.2,4592.0,1.1763406]
[1756379667586,1.0097,4592.2,4592.1,19.777]
[1756379667878,1.68223957,4592.2,4592.1,19.777]
[1756379668079,2.16513957,4592.2,4592.1,19.777]
[1756379675386,1.48873957,4592.2,4592.1,19.777]
[1756379676482,1.27863957,4592.2,4592.1,19.777]
[1756379676682,1.88853957,4592.2,4592.1,19.777]
[1756379677481,2.16513957,4592.2,4592.1,19.777]
[1756379678185,2.16513957,4592.2,4591.9,3.2078]
[1756379678484,1.6805,4592.0,4591.9,3.2078]
[1756379678689,2.14493957,4592.0,4591.9,22.9848]
[1756379679090,1.6805,4592.0,4591.9,22.9848]
[1756379681379,0.9833,4592.0,4591.9,3.2078]
[1756379681583,2.14601247,4592.0,4591.3,3.2078]
[1756379681789,0.9905,4591.8,4591.4,19.776]
[1756379681987,1.1945,4591.7,4591.4,19.776]
[1756379682298,3.42558,4592.3,4591.4,19.776]
[1756379682490,0.46550405,4592.2,4591.4,19.776]
[1756379682792,0.46550405,4592.1,4591.4,19.776]
[1756379682992,1.1918,4591.9,4591.4,19.776]
[1756379683192,0.9905,4591.7,4591.4,19.776]
[1756379683487,0.4136,4591.7,4591.4,19.776]
[1756379683692,0.5769,4591.5,4591.4,19.776]
[1756379684892,1.04240641,4591.5,4591.4,19.776]
[1756379685187,1.1956,4591.4,4591.3,3.2078]
[1756379685487,1.6805,4591.4,4591.3,22.9838]
[1756379685793,0.5769,4591.4,4591.3,22.9838]
[1756379686492,0.296,4591.4,4591.3,22.9838]
[1756379687987,3.2078,4592.3,4591.3,22.9838]
[1756379688185,1.85002965,4592.2,4591.3,22.9838]
[1756379688387,0.46552965,4592.1,4591.3,23.20158]
[1756379688690,0.296,4591.7,4591.3,23.20158]
[1756379688891,0.296,4591.4,4591.3,22.9838]
[1756379689095,0.5769,4591.4,4591.3,22.9838]
[1756379690493,0.9905,4591.4,4591.3,3.2078]
[1756379690792,1.1918,4591.4,4591.3,22.9838]
[1756379691393,0.7782,4591.4,4591.3,22.9838]
[1756379692897,0.7782,4591.4,4591.3,3.2078]
[1756379693192,1.6805,4591.4,4591.3,3.2078]
[1756379693393,1.6805,4591.4,4591.3,22.9828]
[1756379695395,1.6805,4591.4,4591.3,3.2078]
[1756379695695,1.6805,4591.4,4591.3,22.9828]
[1756379696895,1.6805,4591.4,4591.3,3.2078]
[1756379697300,1.6805,4591.4,4591.3,22.9828]
[1756379701892,1.6805,4591.4,4591.3,3.2078]
[1756379702101,0.2013,4591.0,4590.9,31.371]
[1756379702300,0.5769,4591.0,4590.9,51.145]
[1756379702700,0.296,4591.0,4590.9,51.145]
[1756379703405,0.5769,4591.0,4590.9,51.145]
[1756379704300,0.296,4591.0,4590.9,51.145]
[1756379704898,0.296,4591.0,4590.9,31.371]
[1756379705101,0.296,4591.0,4590.9,51.144]
[1756379707003,0.296,4591.2,4590.9,51.144]
[1756379707206,0.2809,4591.3,4590.9,51.144]
[1756379707501,0.296,4591.2,4590.9,51.144]
[1756379707703,0.296,4591.1,4590.9,51.144]
[1756379708395,0.2974,4591.9,4591.1,0.39204]
[1756379708596,0.46724127,4591.8,4591.5,3.2078]
[1756379708802,0.76464127,4591.7,4591.6,19.773]
[1756379709003,0.2974,4591.7,4591.6,19.773]
[1756379709201,0.5805,4591.7,4591.6,19.773]
[1756379710002,0.2974,4591.7,4591.6,19.773]
[1756379712602,0.709,4591.6,4591.5,3.2078]
[1756379712804,1.6586,4591.6,4591.5,3.2078]
[1756379713007,0.4259,4591.4,4591.0,3.2078]
[1756379713300,1.1971,4591.1,4591.0,3.2078]
[1756379713505,1.1971,4591.1,4591.0,22.9788]
[1756379713903,0.2974,4591.1,4591.0,22.9788]
[1756379714103,0.5805,4591.1,4591.0,22.9788]
[1756379714299,0.5805,4591.1,4591.0,3.2078]
[1756379714700,0.7712,4591.1,4591.0,22.9788]
[1756379715006,0.5805,4591.1,4591.0,22.9788]
[1756379715508,1.6586,4591.1,4591.0,22.9788]
[1756379717008,0.2974,4592.1,4591.0,27.19661999]
[1756379717209,0.2974,4591.9,4591.6,3.2078]
[1756379717403,0.76539285,4591.8,4591.7,19.771]
[1756379718311,1.04849285,4591.8,4591.7,19.771]
[1756379720301,0.75109285,4591.8,4591.7,19.77]
[1756379720506,1.04849285,4591.8,4591.7,19.77]
[1756379721108,0.2974,4591.7,4591.6,3.2078]
[1756379721306,0.76539285,4591.7,4591.6,22.9778]
[1756379722414,0.76539285,4591.7,4591.6,22.9768]
[1756379724514,1.04849285,4591.7,4591.6,22.9768]
[1756379725017,1.04849285,4591.7,4591.6,3.2078]
[1756379725220,1.04849285,4591.7,4591.6,22.9758]
[1756379726805,0.76539285,4591.7,4591.6,22.9758]
[1756379727624,0.76539285,4591.7,4591.6,22.9748]
[1756379727824,1.04849285,4591.7,4591.6,22.9748]
[1756379728721,0.76539285,4591.7,4591.6,22.9748]
[1756379729023,0.2831,4592.6,4591.6,23.19259]
[1756379729326,0.4259,4592.7,4591.6,22.9748]
[1756379729327,0.2974,4592.4,4591.6,22.9748]
[1756379729628,0.2974,4592.2,4591.6,22.9748]
[1756379729827,0.4738,4592.3,4591.6,22.9748]
[1756379730025,0.5805,4592.1,4591.6,22.9748]
[1756379730221,0.1907,4591.7,4591.6,3.2078]
[1756379730426,1.6586,4591.7,4591.6,22.9738]
[1756379731830,2.12692418,4591.7,4591.6,22.9738]
[1756379732024,2.12692418,4591.7,4591.6,3.2078]
[1756379732328,2.12692418,4591.7,4591.6,19.766]
[1756379732927,2.12692418,4591.7,4590.9,75.3788]
[1756379732928,1.0064,4591.6,4590.9,75.3788]
[1756379733135,1.6586,4591.0,4590.9,75.3788]
[1756379733330,1.6586,4591.0,4590.9,95.1448]
[1756379733533,1.6586,4591.0,4590.9,54.3448]
[1756379734128,1.2327,4591.0,4590.9,54.3448]
[1756379734333,0.5805,4591.0,4590.9,54.3448]
[1756379734932,1.0064,4591.0,4590.9,34.5788]
[1756379735132,1.47455918,4591.0,4590.9,54.3448]
[1756379736228,1.47455918,4591.0,4590.9,31.371]
[1756379736433,1.47455918,4591.0,4590.9,51.137]
[1756379737022,1.47455918,4591.0,4590.4,3.2078]
[1756379737023,0.6522,4590.5,4590.4,3.2078]
[1756379737228,1.0064,4590.4,4589.9,3.2078]
[1756379737529,0.6166,4590.2,4590.0,19.766]
[1756379737834,0.5805,4590.1,4590.0,19.766]
[1756379740338,0.5756,4590.1,4590.0,19.767]
[1756379740538,0.2788,4590.1,4590.0,19.767]
[1756379740733,0.5756,4590.1,4590.0,19.767]
[1756379741135,0.2968,4590.1,4590.0,19.767]
[1756379741333,0.41,4590.5,4590.0,19.767]
[1756379741533,0.5756,4590.3,4590.2,1.17703399]
[1756379741734,0.5756,4590.3,4590.2,20.94403399]
[1756379742927,0.2968,4590.3,4590.2,20.94403399]
[1756379744742,0.2968,4590.3,4590.2,1.17703399]
[1756379744942,0.2968,4590.3,4590.2,20.94403399]
[1756379745438,0.2968,4590.3,4590.2,1.17703399]
[1756379745648,1.6434,4590.3,4590.2,20.94403399]
[1756379745837,0.7681,4590.3,4590.2,20.94403399]
[1756379746144,0.5756,4590.3,4590.2,20.94403399]
[1756379747138,0.2968,4590.3,4590.2,20.94403399]
[1756379748245,0.2968,4590.3,4590.2,1.17703399]
[1756379748440,0.2968,4590.3,4590.2,20.94403399]
[1756379749546,0.5756,4590.3,4590.2,20.94403399]
[1756379750347,0.5756,4590.3,4590.2,1.17703399]
[1756379750845,0.5756,4590.3,4590.2,20.94403399]
[1756379751246,0.2968,4590.3,4590.2,19.767]
[1756379751741,0.2968,4590.6,4590.2,19.767]
[1756379751942,0.2968,4591.3,4590.4,4.77661966]
[1756379752146,0.2968,4591.7,4591.2,1.17682563]
[1756379752340,0.46413729,4591.6,4591.3,19.767]
[1756379752540,0.2968,4591.4,4591.3,20.94382563]
[1756379753950,0.2968,4591.4,4591.3,19.767]
[1756379755646,0.2968,4591.7,4591.3,19.767]
[1756379755845,0.2968,4591.7,4591.6,1.17668622]
[1756379756044,0.2968,4591.7,4591.6,20.94168622]
[1756379756748,0.5756,4591.7,4591.6,20.94168622]
[1756379759246,1.03964676,4591.7,4591.6,19.765]
[1756379759548,1.6434,4591.5,4591.4,3.2078]
[1756379759749,2.10744676,4591.5,4591.4,22.9708]
[1756379759953,2.32524676,4591.5,4591.4,22.9708]
[1756379760149,2.10744676,4591.5,4591.4,22.9708]
[1756379760349,2.10744676,4591.5,4591.4,19.763]
[1756379760648,1.6434,4591.1,4591.0,1.17668622]
[1756379760844,1.6434,4591.1,4591.0,20.93968622]
[1756379761749,1.6434,4591.1,4591.0,19.763]
[1756379762353,1.6434,4591.1,4591.0,20.93968622]
[1756379763046,0.4653,4590.4,4590.3,3.2078]
[1756379763253,2.10743097,4590.4,4590.3,22.9708]
[1756379763548,0.46403097,4590.4,4590.3,22.9708]
[1756379763951,0.76083097,4590.4,4590.3,22.9708]
[1756379765148,3.2078,4591.4,4590.3,24.14748622]
[1756379765348,0.46401012,4591.3,4590.8,4.38448622]
[1756379765551,0.2968,4591.5,4591.1,1.17668622]
[1756379765852,0.76089729,4591.4,4591.2,19.769]
[1756379766040,0.2788,4591.6,4591.2,20.94568622]
[1756379766246,0.2968,4591.4,4591.2,1.17668622]
[1756379766455,0.5756,4591.5,4591.3,19.768]
[1756379766749,0.76090504,4591.4,4591.3,19.768]
[1756379767049,0.76090504,4591.4,4591.2,1.17668622]
[1756379767354,0.2968,4591.4,4591.3,19.768]
[1756379768154,0.2968,4591.4,4591.3,20.94468622]
[1756379768752,0.2789,4591.7,4591.3,20.94468622]
[1756379769057,0.2789,4591.7,4591.5,4.38448622]
[1756379769245,0.2789,4591.7,4591.6,20.94168622]
[1756379769449,0.2974,4592.1,4591.6,20.94168622]
[1756379769749,0.2789,4591.9,4591.7,1.17668622]
[1756379769952,0.2789,4591.8,4591.7,1.17668622]
[1756379773252,0.5763,4591.8,4591.7,1.17668622]
[1756379776151,0.7665,4591.8,4591.7,1.17668622]
[1756379779163,0.2974,4592.2,4591.7,1.17668622]
[1756379779362,0.2974,4592.2,4592.1,4.38433006]
[1756379779557,0.2974,4592.2,4592.1,24.14533006]
[1756379779757,0.5763,4592.2,4592.1,24.14533006]
[1756379780868,0.5763,4592.2,4592.1,22.9688]
[1756379782766,1.1679,4592.2,4592.1,4.38434588]
[1756379782961,1.6257,4592.2,4592.1,24.14434588]
[1756379783571,1.6257,4592.2,4592.1,4.38434588]
[1756379783762,1.6257,4592.2,4592.1,24.14434588]
[1756379785067,1.2243,4592.2,4592.1,24.14434588]
[1756379785366,0.7665,4592.2,4592.1,24.14434588]
[1756379785566,1.1679,4592.2,4592.1,24.14434588]
[1756379786470,1.1679,4592.2,4592.1,22.9678]
[1756379786969,0.7665,4592.2,4592.1,22.9678]
[1756379787668,0.5763,4592.2,4592.1,22.9678]
[1756379788169,0.2789,4592.2,4592.1,22.9678]
[1756379789174,0.2789,4592.2,4592.1,24.14429162]
[1756379789968,1.1679,4592.2,4592.1,24.14429162]
[1756379790669,0.7665,4592.2,4592.1,24.14429162]
[1756379792165,0.7665,4592.2,4592.1,4.38429162]
[1756379792467,0.7665,4592.2,4592.1,24.14229162]
[1756379794070,0.2789,4592.2,4592.1,24.14229162]
[1756379795264,0.2974,4592.9,4592.4,0.39192]
[1756379795464,0.2789,4592.9,4592.5,20.14991]
[1756379795670,0.2974,4593.2,4592.7,0.3919]
[1756379795864,0.2789,4593.1,4592.8,19.758]
[1756379796066,0.1902,4593.4,4592.8,19.758]
[1756379796371,1.03986391,4593.3,4593.2,1.17627241]
[1756379796571,1.03986391,4593.3,4593.2,20.93327241]
[1756379796768,1.23006554,4593.3,4593.2,20.93327241]
[1756379796968,0.7665,4593.3,4593.2,20.93327241]
[1756379797164,0.2789,4593.3,4593.2,20.93327241]
[1756379797368,0.2789,4593.7,4593.2,19.757]
[1756379797567,0.2789,4593.6,4593.5,1.17621016]
[1756379797869,0.2789,4593.6,4593.5,20.93321016]
[1756379802078,0.2789,4593.6,4593.5,19.757]
[1756379802573,0.2815,4594.0,4593.5,20.14883]
[1756379802773,0.2815,4594.0,4593.9,3.2078]
[1756379802974,0.2815,4594.0,4593.9,22.9618]
[1756379803273,0.568,4594.0,4593.9,22.9618]
[1756379806084,0.2865,4594.0,4593.9,22.9618]
[1756379806682,0.568,4594.0,4593.9,22.9618]
[1756379807174,0.2865,4594.0,4593.9,22.9618]
[1756379808078,0.2865,4594.2,4593.9,22.9618]
[1756379808281,0.6744,4594.5,4594.1,1.17599949]
[1756379808577,1.1939,4594.3,4594.2,19.751]
[1756379808781,1.65776339,4594.3,4594.2,19.751]
[1756379808982,1.03186339,4594.3,4594.2,19.751]
[1756379809585,0.46386339,4594.3,4594.2,20.92699949]
[1756379809878,0.75036339,4594.5,4594.2,20.92699949]
[1756379810080,0.46386339,4594.4,4594.2,20.92699949]
[1756379810285,0.46386339,4594.4,4594.3,1.17599949]
[1756379810574,3.6352,4595.1,4594.3,41.97599949]
[1756379810776,0.2865,4594.8,4594.4,19.75]
[1756379810974,0.2865,4594.6,4594.4,19.75]
[1756379811173,0.46397634,4594.5,4594.4,19.75]
[1756379811673,0.75047634,4594.5,4594.4,19.75]
[1756379812781,0.2865,4594.5,4594.4,24.13379949]
[1756379817378,0.2815,4594.8,4594.4,24.52555949]
[1756379817690,0.2865,4594.6,4594.5,1.17599949]
[1756379817887,0.75043462,4594.6,4594.4,24.13379949]
[1756379818089,0.2865,4594.5,4594.4,24.13379949]
[1756379819189,0.2865,4594.5,4594.4,22.9578]